fUSD/lending_fUSD_20250422
["ID","MTS","AMOUNT","RATE_DAILY","PERIOD"]
[358584593,1745280428160,387.250176,7.945e-05,2]
[358584594,1745280631722,-268.0,0.00019899,2]
[358584595,1745280631732,-300.0,0.00019899,2]
[358584596,1745280631742,-300.0,0.00019899,2]
[358584597,1745280631751,-300.0,0.00019899,2]
[358584598,1745280631762,-1014.08896191,0.000199,2]
[358584599,1745280631772,-214.9844,0.000199,2]
[358584600,1745280631782,-292.70840244,0.000199,2]
[358584601,1745280631792,-1000.0,0.000199,2]
[358584602,1745280631801,-8854.67678185,0.000199,2]
[358584603,1745280631812,-2500.0,0.000199,2]
[358584604,1745280631822,-500.0,0.00019973,2]
[358584605,1745280631832,-2509.45516349,0.00019986,2]
[358584606,1745280631844,-494.7767235,0.00019986,2]
[358584608,1745280631856,-6513.80164171,0.00019986,2]
[358584609,1745280631865,-15807.80638821,0.00019986,2]
[358584631,1745280638047,-3834.00425609,0.00019986,2]
[358584638,1745280639915,-764.947,0.00019986,2]
[358584639,1745280640093,-1283.80138565,0.00019986,2]
[358584640,1745280640106,-20.06663085,0.00019986,2]
[358584641,1745280640116,-281.67914917,0.00019986,2]
[358584642,1745280640125,-508.00726681,0.0001999,2]
[358584643,1745280640137,-808.23456194,0.0001999,2]
[358584644,1745280640148,-5684.1854333,0.0001999,2]
[358584645,1745280640163,-272.455,0.0001999,2]
[358584646,1745280640176,-1246.79773795,0.0001999,2]
[358584647,1745280640186,-1174.3522697,0.0001999,2]
[358584648,1745280640197,-967.07159406,0.0001999,2]
[358584649,1745280640280,-6378.25613624,0.0001999,2]
[358584650,1745280640291,-4718.78952902,0.0002,2]
[358584656,1745280644088,-1960.903441,0.0002,2]
[358584657,1745280644099,-7732.94178223,0.0002,2]
[358584658,1745280644110,-31361.92882946,0.0002,2]
[358584659,1745280644226,-1121.145,0.0002,2]
[358584660,1745280644292,-841.09078813,0.0002,2]
[358584661,1745280644303,-735.915,0.0002,2]
[358584693,1745280645458,-445.93234517,0.0002,2]
[358584694,1745280645470,-6306.20630968,0.0002,2]
[358584695,1745280645481,-1165.30404382,0.0002,2]
[358584696,1745280645494,-9328.34068925,0.0002,2]
[358584699,1745280645684,-3156.4070388,0.0002,2]
[358584700,1745280645810,-645.12208,0.0002,2]
[358584701,1745280645823,-403.54451316,0.0002,2]
[358584702,1745280645934,-2523.70000002,0.0002,2]
[358584703,1745280646001,-4744.79967454,0.0002,2]
[358584704,1745280646066,-323.57617519,0.0002,2]
[358584705,1745280646078,-872.23565364,0.0002,2]
[358584753,1745280726835,200.0,0.00047685,120]
[358584754,1745280727481,207.4,0.00047685,120]
[358584755,1745280728278,215.0738,0.00047685,120]
[358584756,1745280728873,223.0315306,0.00047685,120]
[358584757,1745280729630,231.28369723,0.00047685,120]
[358584758,1745280730181,239.84119403,0.00047685,120]
[358584759,1745280730879,248.71531821,0.00047685,120]
[358584760,1745280731498,257.91778498,0.00047685,120]
[358584761,1745280732132,267.46074303,0.00047685,120]
[358584762,1745280732772,277.35679052,0.00047685,120]
[358584763,1745280733444,287.61899177,0.00047685,120]
[358584764,1745280734131,298.26089446,0.00047685,120]
[358584765,1745280735383,309.29654756,0.00047685,120]
[358584766,1745280736032,320.74051982,0.00047685,120]
[358584767,1745280737230,332.60791905,0.00047685,120]
[358584768,1745280737892,344.91441206,0.00047685,120]
[358584769,1745280738572,357.6762453,0.00047685,120]
[358584770,1745280739165,370.91026638,0.00047685,120]
[358584771,1745280739861,384.63394623,0.00047685,120]
[358584772,1745280740392,384.63394623,0.00047685,120]
[358584774,1745280946186,1000.0,0.00047685,30]
[358584775,1745280946732,785.58313783,0.00047685,30]
[358584776,1745281026492,200.0,0.00047685,120]
[358584777,1745281027681,207.4,0.00047685,120]
[358584778,1745281028347,215.0738,0.00047685,120]
[358584779,1745281029175,223.0315306,0.00047685,120]
[358584780,1745281029816,231.28369723,0.00047685,120]
[358584781,1745281030461,239.84119403,0.00047685,120]
[358584782,1745281031078,248.71531821,0.00047685,120]
[358584783,1745281031710,257.91778498,0.00047685,120]
[358584784,1745281032386,267.46074303,0.00047685,120]
[358584785,1745281033005,277.35679052,0.00047685,120]
[358584786,1745281033710,287.61899177,0.00047685,120]
[358584787,1745281034359,298.26089446,0.00047685,120]
[358584788,1745281035503,309.29654756,0.00047685,120]
[358584789,1745281036132,320.74051982,0.00047685,120]
[358584790,1745281036757,332.60791905,0.00047685,120]
[358584791,1745281037389,344.91441206,0.00047685,120]
[358584792,1745281038413,357.6762453,0.00047685,120]
[358584793,1745281038817,370.91026638,0.00047685,120]
[358584794,1745281039435,384.63394623,0.00047685,120]
[358584795,1745281040050,384.63394623,0.00047685,120]
[358584796,1745281120956,965.068,0.00047684,30]
[358584798,1745281287785,100000.0,0.00047684,30]
[358584799,1745281323669,200.0,0.00047684,120]
[358584800,1745281324274,200.0,0.00047684,120]
[358584801,1745281537333,5081.11506514,9e-05,2]
[358584802,1745281555728,3913.6867,6.94e-05,2]
[358584803,1745281555750,7544.15804474,6.94e-05,2]
[358584804,1745281567843,2455.84195526,8e-05,2]
[358584805,1745281567864,2358.97874721,8e-05,2]
[358584806,1745281628118,1239.0445,0.000153,2]
[358584807,1745281631734,1570.70080296,0.00015,2]
[358584808,1745281635083,2050.36763727,0.00015,2]
[358584809,1745281676204,2780.90831256,0.0001,2]
[358584810,1745281676224,10000.0,0.0001,2]
[358584811,1745281676244,10000.0,0.0001,2]
[358584812,1745281676263,9661.63664537,0.0001,2]
[358584813,1745281695153,338.36335463,0.0001439,2]
[358584814,1745281695176,9603.25847116,0.0001439,2]
[358584815,1745281698180,396.74152884,0.000135,2]
[358584816,1745281698202,8.0521461,0.000135,2]
[358584817,1745281698264,296.70620099,0.000125,2]
[358584818,1745281705618,1864.64572995,0.0001,2]
[358584819,1745281713049,7830.59592296,9.828e-05,2]
[358584820,1745281713070,3103.75630178,9.828e-05,2]
[358584821,1745281716085,5645.28020269,0.000149,2]
[358584822,1745281718262,1250.96349553,0.0001,2]
[358584823,1745281718283,1389.28033511,0.0001,2]
[358584824,1745281725540,1362.9646019,0.00010136,2]
[358584825,1745281725810,6059.11499783,0.00013368,2]
[358584829,1745281796552,299.99,0.00019999,7]
[358584843,1745281838064,-601.180689,0.00019687,2]
[358584844,1745281838074,-300.0,0.00019885,2]
[358584845,1745281838083,-300.0,0.00019885,2]
[358584846,1745281838093,-1000.0,0.00019886,2]
[358584847,1745281838103,-2500.0,0.00019886,2]
[358584848,1745281838112,-1839.3195,0.00019886,2]
[358584849,1745281838122,-250.3876,0.000199,2]
[358584850,1745281838131,-250.89291642,0.000199,2]
[358584851,1745281838140,-11016.73765245,0.000199,2]
[358584852,1745281838149,-178.38962006,0.000199,2]
[358584853,1745281838159,-5300.40466315,0.000199,2]
[358584854,1745281838168,-1265.97,0.0001996,2]
[358584855,1745281838177,-500.0,0.00019973,2]
[358584856,1745281838187,-9050.4807025,0.00019986,2]
[358584857,1745281838197,-64986.2005162,0.00019986,2]
[358584858,1745281838207,-20508.4546116,0.00019986,2]
[358584859,1745281838216,-138035.1595317,0.00019986,2]
[358584860,1745281838225,-500.0,0.00019999,2]
[358584861,1745281838235,-500.0,0.00019999,2]
[358584862,1745281838244,-500.0,0.00019999,2]
[358584863,1745281838254,-150.99,0.00019999,2]
[358584864,1745281838263,-150.99,0.00019999,2]
[358584865,1745281838273,-9999.99,0.00019999,2]
[358584866,1745281838283,-1181794.6215761,0.0002,2]
[358584867,1745281838294,-1179988.97079468,0.0002,2]
[358584868,1745281838304,-203440.6984333,0.0002,2]
[358584869,1745281838313,-39504.52677682,0.0002,2]
[358584870,1745281838322,-1532836.89139874,0.0002,2]
[358584871,1745281838341,-564.0000042,0.0002,2]
[358584934,1745281840436,-1652.21545307,0.0002,2]
[358584938,1745281840467,-409.31507877,0.0002,2]
[358584945,1745281845979,-791.1144935,0.0002,2]
[358584949,1745282228620,250.0,0.00019651,7]
[358584950,1745282479055,250.0,0.00019376,2]
[358584951,1745282576225,23.73608358,0.00017006,2]
[358584952,1745282576252,1188.64006516,0.00017006,2]
[358584953,1745282576273,107.35385126,0.00017006,2]
[358584954,1745282578375,-152.0,0.0001927,2]
[358584955,1745282614716,439.25,0.00018879,2]
[358584956,1745282630656,4527.18,0.00018887,2]
[358584957,1745282633364,-346.716128,0.00019174,2]
[358584958,1745282633805,551.81,0.00018887,2]
[358584959,1745282705173,206.66,0.00018872,2]
[358584960,1745282705740,-206.66,0.0001927,2]
[358584961,1745282707331,-739.19,0.0001927,2]
[358584962,1745282717991,-150.0,0.00019174,2]
[358584963,1745282745925,1000.0,0.00018861,2]
[358584964,1745282789436,-163.08840372,0.00019125,2]
[358584965,1745282862924,-197.63407949,0.00019056,2]
[358584966,1745282865294,1079.98114,0.0001896,2]
[358584967,1745282926342,200.0,0.00018823,2]
[358584968,1745282934825,1887.76500874,0.0001882,2]
[358584969,1745282934847,882.06499126,0.0001882,2]
[358584970,1745282952761,-150.0,0.00019056,2]
[358584971,1745282965077,3037.69,0.00018799,2]
[358584972,1745282965695,-238.98284342,0.00019056,2]
[358584978,1745283032055,-921.98307709,0.00019056,2]
[358584979,1745283032064,-150.0,0.00019222,2]
[358584980,1745283032073,-221.88,0.0001927,2]
[358584981,1745283032083,-168.50481026,0.00019275,2]
[358584982,1745283032092,-79.63211264,0.00019375,2]
[358584983,1745283032103,-70.36788736,0.00019375,2]
[358584984,1745283032113,-289.86372131,0.000194,2]
[358584985,1745283032122,-39.76839133,0.000194,2]
[358584986,1745283032135,-123.32001239,0.000194,2]
[358584987,1745283032146,-197.63407949,0.000194,2]
[358584988,1745283032156,-150.0,0.000194,2]
[358584989,1745283032165,-168.50481024,0.00019451,2]
[358584990,1745283032174,-1200.0,0.00019564,2]
[358584991,1745283032183,-300.0,0.00019565,2]
[358584992,1745283032192,-300.0,0.00019565,2]
[358584993,1745283032201,-5295.54109788,0.00019566,2]
[358584994,1745283032264,-1195.381278,0.00019566,2]
[358584996,1745283032284,-12506.34506161,0.00019566,2]
[358585015,1745283038004,-290.17392802,0.00019566,2]
[358585016,1745283038108,-510.82990169,0.00019566,2]
[358585017,1745283038119,-305.165,0.00019566,2]
[358585018,1745283038162,-3796.5637328,0.00019566,2]
[358585019,1745283038171,-11378.7939772,0.00019566,2]
[358585020,1745283038217,-13249.0560228,0.00019566,2]
[358585021,1745283038226,-253.77,0.00019566,2]
[358585022,1745283038236,-1535.21,0.00019566,2]
[358585023,1745283038245,-9999.99,0.00019566,2]
[358585024,1745283038255,-9999.99,0.00019566,2]
[358585025,1745283038263,-150.99,0.00019566,2]
[358585026,1745283038272,-437.66,0.00019566,2]
[358585027,1745283038281,-150.99,0.00019566,2]
[358585028,1745283038291,-1027.3,0.00019566,2]
[358585029,1745283038299,-3529.61,0.00019566,2]
[358585030,1745283038309,-4706.08,0.00019566,2]
[358585031,1745283038318,-168.50481024,0.00019627,2]
[358585032,1745283038327,-1180.12,0.00019627,2]
[358585033,1745283038336,-200.0,0.0001964,2]
[358585034,1745283038346,-896.7283,0.00019678,2]
[358585035,1745283038355,-11189.7156,0.00019678,2]
[358585036,1745283038365,-1000.0,0.00019678,2]
[358585037,1745283038374,-9972.8330362,0.00019678,2]
[358585038,1745283038384,-9972.83303617,0.00019703,2]
[358585039,1745283038394,-9972.83303617,0.00019727,2]
[358585040,1745283038404,-2500.0,0.00019744,2]
[358585041,1745283038416,-9972.83303617,0.00019752,2]
[358585042,1745283038426,-162.66,0.00019768,2]
[358585043,1745283038435,-162.66,0.00019768,2]
[358585044,1745283038444,-162.66,0.00019768,2]
[358585045,1745283038455,-162.66,0.00019768,2]
[358585046,1745283038464,-500.0,0.00019773,2]
[358585047,1745283038474,-500.0,0.00019773,2]
[358585048,1745283038483,-311.29666388,0.00019773,2]
[358585050,1745283038493,-500.0,0.00019773,2]
[358585052,1745283038503,-157.25437071,0.00019773,2]
[358585054,1745283038512,-500.0,0.00019773,2]
[358585055,1745283038521,-200.0,0.00019773,2]
[358585056,1745283038530,-9972.83303617,0.00019777,2]
[358585057,1745283038539,-122867.0499,0.00019778,2]
[358585058,1745283038550,-4423.3065,0.00019778,2]
[358585059,1745283038559,-170.22702338,0.00019786,2]
[358585060,1745283038568,-500.0,0.000198,2]
[358585061,1745283038578,-1839.3195,0.000198,2]
[358585062,1745283038587,-250.3876,0.000198,2]
[358585063,1745283038596,-162.66,0.000198,2]
[358585064,1745283038605,-162.66,0.000198,2]
[358585065,1745283038614,-9972.83303617,0.00019801,2]
[358585066,1745283038623,-26689.14388783,0.0001981,2]
[358585067,1745283038634,-9972.83303617,0.00019826,2]
[358585068,1745283038644,-162.66,0.00019841,2]
[358585069,1745283038655,-9972.83303617,0.00019851,2]
[358585070,1745283038664,-165.63823045,0.00019873,2]
[358585071,1745283038673,-207.84012458,0.00019873,2]
[358585072,1745283038682,-500.0,0.00019873,2]
[358585073,1745283038691,-9972.83303617,0.00019875,2]
[358585074,1745283038700,-162.66,0.00019876,2]
[358585075,1745283038709,-162.66,0.00019876,2]
[358585076,1745283038720,-162.66,0.00019881,2]
[358585077,1745283038730,-954.753,0.00019885,2]
[358585078,1745283038742,-10399.03254894,0.00019886,2]
[358585079,1745283038750,-4954.5881,0.00019886,2]
[358585080,1745283038759,-9796.3047,0.00019886,2]
[358585081,1745283038769,-10399.03254888,0.00019888,2]
[358585082,1745283038778,-10399.03254888,0.00019889,2]
[358585083,1745283038787,-10399.03254888,0.00019891,2]
[358585084,1745283038796,-10399.03254888,0.00019892,2]
[358585085,1745283038805,-10399.03254888,0.00019894,2]
[358585086,1745283038814,-10399.03254888,0.00019895,2]
[358585087,1745283038823,-10399.03254888,0.00019897,2]
[358585088,1745283038832,-10399.03254888,0.00019898,2]
[358585089,1745283038840,-1099.1283,0.000199,2]
[358585090,1745283038849,-81780.4016,0.000199,2]
[358585091,1745283038858,-1000.0,0.000199,2]
[358585092,1745283038867,-250.89291642,0.000199,2]
[358585093,1745283038877,-10399.03254888,0.000199,2]
[358585094,1745283038886,-9972.83303617,0.000199,2]
[358585095,1745283038896,-1568.95811008,0.000199,2]
[358585096,1745283038905,-4864.42373908,0.000199,2]
[358585097,1745283038914,-233.47189523,0.000199,2]
[358585098,1745283038923,-5300.40466315,0.000199,2]
[358585099,1745283038932,-628.10016536,0.00019973,2]
[358585100,1745283038941,-500.0,0.00019973,2]
[358585101,1745283038950,-3786.0,0.00019973,2]
[358585102,1745283038959,-7804.9093707,0.00019986,2]
[358585103,1745283038968,-1017.5757136,0.00019986,2]
[358585104,1745283038977,-22691.0206747,0.00019986,2]
[358585105,1745283038986,-2292.1616104,0.00019986,2]
[358585106,1745283038996,-2707.3901894,0.00019986,2]
[358585107,1745283039005,-40134.0953554,0.00019986,2]
[358585108,1745283039015,-337.6372216,0.00019986,2]
[358585109,1745283039023,-500.0,0.00019999,2]
[358585110,1745283039032,-500.0,0.00019999,2]
[358585111,1745283039041,-500.0,0.00019999,2]
[358585112,1745283039050,-500.0,0.00019999,2]
[358585113,1745283039059,-150.0,0.00019999,2]
[358585114,1745283039068,-150.0,0.00019999,2]
[358585115,1745283039077,-591.0,0.0002,2]
[358585116,1745283039086,-1182925.17723418,0.0002,2]
[358585117,1745283039098,-2955771.08740354,0.0002,2]
[358585119,1745283040417,-95.93073615,0.0002,2]
[358585120,1745283040632,-17452.8,0.0002,2]
[358585121,1745283040689,-84276.58680188,0.0002,2]
[358585132,1745283043144,-772.6960384,0.00019986,2]
[358585133,1745283043154,-171733.70422082,0.0002,2]
[358585180,1745283046017,-388.4505625,0.0002,2]
[358585187,1745283046071,-274.46550496,0.0002,2]
[358585220,1745283271124,164.0,0.0004773,30]
[358585221,1745283344333,-500.0,0.00019678,2]
[358585222,1745283344556,-1000.0,0.00019678,2]
[358585223,1745283344583,-212.0,0.00019899,2]
[358585224,1745283344611,-300.0,0.00019899,2]
[358585225,1745283344635,-442.4641,0.000199,2]
[358585226,1745283344658,-631.27012883,0.000199,2]
[358585227,1745283344682,-1000.0,0.000199,2]
[358585228,1745283344705,-6297.2358,0.000199,2]
[358585229,1745283344728,-2500.0,0.000199,2]
[358585230,1745283344752,-928.5093955,0.000199,2]
[358585231,1745283344775,-500.0,0.00019973,2]
[358585232,1745283344798,-500.0,0.00019973,2]
[358585233,1745283344832,-500.0,0.00019985,2]
[358585234,1745283344863,-500.0,0.00019985,2]
[358585235,1745283344886,-500.0,0.00019985,2]
[358585236,1745283344909,-399.45687155,0.00019985,2]
[358585237,1745283344934,-14520.4669988,0.00019986,2]
[358585238,1745283344962,-44088.7062871,0.00019986,2]
[358585239,1745283344985,-4402.0710519,0.00019986,2]
[358585240,1745283345010,-101276.5842444,0.00019986,2]
[358585241,1745283345034,-3249.2635576,0.00019986,2]
[358585242,1745283345060,-565751.97156432,0.0002,2]
[358585243,1745283767000,207.0,0.00047684,30]
[358585244,1745283801679,41807.0,0.00047695,120]
[358585247,1745284153325,181.74609019,0.00010486,2]
[358585249,1745284232144,-1248.361,0.000196,2]
[358585250,1745284232153,-176.84849338,0.000196,2]
[358585251,1745284232162,-1238.84,0.00019635,2]
[358585252,1745284232172,-300.0,0.00019885,2]
[358585253,1745284232180,-300.0,0.00019885,2]
[358585254,1745284232189,-8574.7105,0.00019886,2]
[358585255,1745284232199,-1000.0,0.00019886,2]
[358585256,1745284232209,-2500.0,0.00019886,2]
[358585257,1745284232219,-850.0,0.00019899,2]
[358585258,1745284232228,-5775.4747,0.000199,2]
[358585259,1745284232237,-2301.2886,0.000199,2]
[358585260,1745284232246,-52890.9795,0.000199,2]
[358585261,1745284232255,-215.0510712,0.000199,2]
[358585262,1745284232264,-529.1849047,0.000199,2]
[358585263,1745284232275,-445.47955086,0.000199,2]
[358585264,1745284232284,-14273.36684512,0.000199,2]
[358585265,1745284232295,-639.1315495,0.000199,2]
[358585266,1745284232312,-21155.22627871,0.000199,2]
[358585267,1745284232323,-425.18333004,0.000199,2]
[358585268,1745284232335,-5801.62938366,0.000199,2]
[358585278,1745284232586,-8041.64964665,0.000199,2]
[358585280,1745284232595,-159.81937399,0.00019973,2]
[358585282,1745284232604,-483.44366644,0.00019973,2]
[358585284,1745284232613,-377.72894388,0.00019973,2]
[358585286,1745284232622,-500.0,0.00019973,2]
[358585288,1745284232631,-500.71248276,0.00019973,2]
[358585290,1745284232640,-503.79373034,0.00019973,2]
[358585292,1745284232650,-410.09,0.00019976,2]
[358585294,1745284232659,-410.09,0.00019976,2]
[358585296,1745284232668,-284.73620152,0.00019976,2]
[358585307,1745284238257,-174.34921465,0.00019786,2]
[358585308,1745284238266,-125.35379848,0.00019976,2]
[358585309,1745284238276,-74062.5648807,0.00019986,2]
[358585310,1745284238285,-2395.6093644,0.00019986,2]
[358585311,1745284238294,-5236.4509479,0.00019986,2]
[358585312,1745284238303,-31752.7972218,0.00019986,2]
[358585313,1745284238314,-10816.3902741,0.00019986,2]
[358585314,1745284238324,-170.71675584,0.0001999,2]
[358585315,1745284238332,-410.09,0.0001999,2]
[358585316,1745284238341,-410.09,0.0001999,2]
[358585317,1745284238350,-410.09,0.0001999,2]
[358585318,1745284238361,-410.09,0.0001999,2]
[358585319,1745284238370,-410.09,0.0001999,2]
[358585320,1745284238379,-410.09,0.0001999,2]
[358585321,1745284238389,-410.09,0.0001999,2]
[358585322,1745284238398,-1057278.46789273,0.0002,2]
[358585359,1745284240702,-1112.16656972,0.0002,2]
[358585360,1745284240714,-2009.35,0.0002,2]
[358585372,1745284362081,150.0,0.00047695,30]
[358585373,1745284607058,-252.15861974,0.00019383,2]
[358585374,1745284866120,851.0,0.00047693,30]
[358585376,1745285089084,-172.46,0.00032426,120]
[358585377,1745285089112,-1500.0,0.00032877,120]
[358585378,1745285089138,-267.88,0.00032904,30]
[358585379,1745285089171,-166.39,0.0004,30]
[358585380,1745285089196,-150.0,0.00041095,120]
[358585381,1745285089223,-267.88,0.00041619,30]
[358585382,1745285089250,-998.69,0.000422,63]
[358585383,1745285089277,-150.0,0.00042465,120]
[358585384,1745285089305,-150.0,0.00043835,120]
[358585385,1745285150625,-302.6922764,0.00019286,2]
[358585387,1745285195267,250.48606804,0.00043562,120]
[358585388,1745285200251,166.39,0.0004,30]
[358585389,1745285220957,-152.94209695,0.00019286,2]
[358585391,1745285278831,150.0,0.00041095,120]
[358585392,1745285279066,150.0,0.00042465,120]
[358585393,1745285279318,150.0,0.00043835,120]
[358585394,1745285298237,-265.55095562,0.00019286,2]
[358585395,1745285302906,1143.2,0.00047693,30]
[358585399,1745285340782,2043.13,0.00047693,60]
[358585404,1745285408118,221.0,0.00047693,120]
[358585405,1745285413184,317.22,0.000436,120]
[358585406,1745285413227,254.11,0.000436,120]
[358585407,1745285423006,-25.51081038,0.00019286,2]
[358585408,1745285423029,-166.63455237,0.00019306,2]
[358585409,1745285428911,200.0,0.000193,7]
[358585410,1745285431058,500.0,0.000194,7]
[358585427,1745285432351,-83.97202941,0.00019306,2]
[358585429,1745285432361,-716.02797059,0.00019383,2]
[358585432,1745285432372,-208.70340967,0.00019383,2]
[358585434,1745285432382,-107.23659033,0.000196,2]
[358585436,1745285432394,-891.45240967,0.000196,2]
[358585438,1745285432404,-1094.0,0.000196,2]
[358585440,1745285432413,-265.551,0.000198,2]
[358585442,1745285432423,-500.0,0.00019873,2]
[358585444,1745285432432,-1200.0,0.00019885,2]
[358585446,1745285432442,-1099.1283,0.00019886,2]
[358585447,1745285432451,-1000.0,0.00019886,2]
[358585448,1745285432461,-267.0,0.00019899,2]
[358585449,1745285432470,-625.49621293,0.000199,2]
[358585450,1745285432481,-932.61870304,0.000199,2]
[358585451,1745285432493,-18441.88508403,0.000199,2]
[358585452,1745285432502,-21719.75,0.000199,2]
[358585453,1745285432511,-11016.73765245,0.000199,2]
[358585454,1745285432521,-184.3294896,0.000199,2]
[358585455,1745285432531,-5145.7371671,0.000199,2]
[358585456,1745285432545,-1737.6,0.000199,2]
[358585457,1745285432555,-5508.99011721,0.000199,2]
[358585458,1745285432565,-1941.11056716,0.000199,2]
[358585459,1745285432574,-17949.41555167,0.000199,2]
[358585460,1745285432584,-286.31189666,0.000199,2]
[358585461,1745285432595,-290.55153278,0.000199,2]
[358585462,1745285432604,-3533.60310876,0.000199,2]
[358585463,1745285432614,-3786.0,0.00019973,2]
[358585464,1745285432623,-300.3,0.0001999,2]
[358585466,1745285432632,-300.3,0.0001999,2]
[358585467,1745285432642,-300.3,0.0001999,2]
[358585468,1745285432654,-300.3,0.0001999,2]
[358585469,1745285432664,-300.3,0.0001999,2]
[358585470,1745285432673,-300.3,0.0001999,2]
[358585471,1745285432683,-300.3,0.0001999,2]
[358585472,1745285432692,-300.3,0.0001999,2]
[358585473,1745285432701,-300.3,0.0001999,2]
[358585474,1745285432710,-300.3,0.0001999,2]
[358585475,1745285432720,-180.49876928,0.0001999,2]
[358585476,1745285432729,-500.0,0.00019999,2]
[358585477,1745285432738,-500.0,0.00019999,2]
[358585478,1745285432748,-300.0,0.00019999,2]
[358585479,1745285432758,-673.15838074,0.00019999,2]
[358585480,1745285432768,-247.16430434,0.0002,2]
[358585481,1745285432777,-430674.10015665,0.0002,2]
[358585482,1745285432797,-1342.78413887,0.0002,2]
[358585483,1745285433121,700.0,0.000195,7]
[358585507,1745285435215,1000.0,0.000196,7]
[358585508,1745285437316,1200.0,0.000197,7]
[358585519,1745285438795,-658509.23076615,0.0002,2]
[358585520,1745285438806,-300.0,0.0002,2]
[358585521,1745285438816,-185.5883567,0.0002,2]
[358585522,1745285438825,-641173.67245185,0.0002,2]
[358585523,1745285438836,-2955771.08740354,0.0002,2]
[358585524,1745285438848,-3879.65451384,0.0002,2]
[358585577,1745285439422,200.0,0.000198,7]
[358585623,1745285440652,-3869.91923033,0.0002,2]
[358585624,1745285440663,-554.0617,0.0002,2]
[358585625,1745285440874,-17966.1406408,0.0002,2]
[358585626,1745285440954,-25750.36882445,0.0002,2]
[358585627,1745285440966,-8851.3,0.0002,2]
[358585630,1745285441230,260.4011661,0.00047693,30]
[358585633,1745285441661,200.0,0.000199,7]
[358585640,1745285443530,-288.21007754,0.0002,2]
[358585641,1745285443541,-316.46,0.0002,2]
[358585642,1745285443613,-653.46869427,0.0002,2]
[358585652,1745285446353,-20846.2835344,0.0002,2]
[358585653,1745285446365,-630.874808,0.0002,2]
[358585673,1745285489770,284.69610682,0.00047693,30]
[358585674,1745285560057,159363.69402204,0.00047693,30]
[358585675,1745285571387,200000.0,0.00047693,30]
[358585676,1745285649098,244.62158505,0.00047723,60]
[358585677,1745285852761,229.42160893,0.000372,120]
[358585679,1745285910229,614.939,0.00039133,53]
[358585681,1745285976635,242.5038621,0.00047716,30]
[358585682,1745286183772,150.0,0.00041095,120]
[358585683,1745286184413,150.0,0.00042465,120]
[358585684,1745286184466,150.0,0.00043835,120]
[358585685,1745286211108,223.23,0.00032904,30]
[358585686,1745286211488,223.23,0.00041619,30]
[358585687,1745286244651,512.0,0.00042993,120]
[358585688,1745286246889,617.0,0.00042993,120]
[358585689,1745286254605,500.0,0.00042992,30]
[358585690,1745286314251,-166.66,0.00018988,2]
[358585692,1745286372208,464.6,0.00047718,120]
[358585693,1745286420837,-194.88734647,0.00018981,2]
[358585694,1745286448607,200.0,0.00018918,2]
[358585695,1745286486913,203.1641,0.00018885,2]
[358585696,1745286530627,419.27,0.00018903,2]
[358585697,1745286531246,-263.02305704,0.00018981,2]
[358585698,1745286602577,-204.449296,0.00018981,2]
[358585699,1745286615090,500.0,0.00042992,30]
[358585700,1745286615248,500.0,0.00043834,30]
[358585703,1745286631516,-137.98030049,0.00018981,2]
[358585704,1745286631526,-250.0,0.00018984,2]
[358585705,1745286631536,-5.45,0.00018988,2]
[358585706,1745286631547,-473.6668589,0.000194,2]
[358585707,1745286631557,-166.66,0.0001947,2]